fUSD/lending_fUSD_20251019
["ID","MTS","AMOUNT","RATE_DAILY","PERIOD"]
[391798222,1760841038015,-294.75802627,0.00015,2]
[391798223,1760841040150,-17572.86437885,0.00015,2]
[391798224,1760841040162,-46225.81345035,0.00015,2]
[391798225,1760841040437,-1.6e-07,0.00015,2]
[391798227,1760841040448,-800.0,0.00015,2]
[391798229,1760841040459,-304.6487871,0.00015,2]
[391798231,1760841040470,-92564.69316402,0.00015,2]
[391798232,1760841040484,-2224.4773299,0.00015,2]
[391798233,1760841040495,-136426.86311565,0.00015,2]
[391798234,1760841040504,-619.43,0.00015325,2]
[391798235,1760841040513,-501.51126523,0.00015521,2]
[391798236,1760841040522,-505.86828881,0.00015521,2]
[391798237,1760841040531,-151.27884758,0.00015527,2]
[391798238,1760841040541,-255.0,0.00016124,2]
[391798239,1760841040551,-619.43,0.00016132,2]
[391798240,1760841040560,-2698.30962322,0.000162,5]
[391798241,1760841040569,-300.0,0.00016375,2]
[391798242,1760841040578,-300.0,0.00016417,2]
[391798243,1760841040588,-1200.0,0.00016857,2]
[391798244,1760841040597,-250.0,0.00016858,2]
[391798245,1760841040609,-619.43,0.00016939,2]
[391798246,1760841040619,-544.65783995,0.0001765,2]
[391798247,1760841040628,-619.43,0.00017745,2]
[391798248,1760841040637,-619.43,0.00018552,2]
[391798249,1760841040646,-619.43,0.00019358,2]
[391798250,1760841040656,-160.38,0.0002,2]
[391798251,1760841040665,-30000.0,0.0002,2]
[391798252,1760841040675,-619.43,0.00020165,2]
[391798253,1760841040684,-619.43,0.00020972,2]
[391798254,1760841040694,-619.43,0.00021778,2]
[391798255,1760841040703,-619.43,0.00022585,2]
[391798256,1760841040712,-201.53321539,0.00022671,2]
[391798257,1760841040722,-151.0,0.00022671,2]
[391798258,1760841040731,-151.0,0.00022671,2]
[391798259,1760841040740,-151.0,0.00022671,2]
[391798260,1760841040750,-151.0,0.00022671,2]
[391798261,1760841040759,-151.0,0.00022671,2]
[391798262,1760841040769,-151.0,0.00022671,2]
[391798263,1760841040778,-151.0,0.00022671,2]
[391798264,1760841040787,-151.0,0.00022671,2]
[391798265,1760841040796,-151.0,0.00022671,2]
[391798266,1760841040806,-151.0,0.00022671,2]
[391798267,1760841040816,-151.0,0.00022671,2]
[391798268,1760841040825,-151.0,0.00022671,2]
[391798269,1760841040835,-151.0,0.00022671,2]
[391798270,1760841040844,-151.0,0.00022671,2]
[391798271,1760841040853,-151.0,0.00022671,2]
[391798272,1760841040862,-151.0,0.00022671,2]
[391798273,1760841040875,-500.0,0.00022671,2]
[391798274,1760841040885,-151.0,0.00022671,2]
[391798275,1760841040894,-500.0,0.00022671,2]
[391798276,1760841040903,-151.0,0.00022671,2]
[391798277,1760841040912,-500.0,0.00022671,2]
[391798278,1760841040921,-151.0,0.00022671,2]
[391798279,1760841040931,-500.0,0.00022671,2]
[391798280,1760841040940,-151.0,0.00022671,2]
[391798281,1760841040950,-500.0,0.00022671,2]
[391798282,1760841040959,-151.0,0.00022671,2]
[391798283,1760841040968,-500.0,0.00022671,2]
[391798284,1760841040978,-500.0,0.00022671,2]
[391798285,1760841040987,-151.0,0.00022671,2]
[391798286,1760841040997,-500.0,0.00022671,2]
[391798287,1760841041007,-151.0,0.00022671,2]
[391798288,1760841041016,-200.0,0.00022671,2]
[391798289,1760841041026,-151.0,0.00022671,2]
[391798290,1760841041040,-151.0,0.00022671,2]
[391798291,1760841041049,-151.0,0.00022671,2]
[391798292,1760841041059,-151.0,0.00022671,2]
[391798293,1760841041068,-200.0,0.00022671,2]
[391798294,1760841041078,-151.0,0.00022671,2]
[391798295,1760841041088,-151.0,0.00022671,2]
[391798296,1760841041097,-151.0,0.00022671,2]
[391798297,1760841041107,-151.0,0.00022671,2]
[391798298,1760841041116,-1853.967612,0.00022685,2]
[391798299,1760841041125,-154.497301,0.00023177,2]
[391798300,1760841041135,-289.89738536,0.00023219,2]
[391798301,1760841041144,-201.26694162,0.00023219,2]
[391798302,1760841041154,-619.43,0.00023392,2]
[391798303,1760841041163,-202.78,0.00023844,2]
[391798304,1760841041171,-3000.0,0.0002414,2]
[391798305,1760841041181,-456.13752508,0.0002414,2]
[391798306,1760841041190,-267.46074303,0.0002414,2]
[391798307,1760841041199,-466.87969503,0.0002414,2]
[391798308,1760841041208,-322.6107,0.0002414,2]
[391798309,1760841041217,-1000.0,0.0002414,2]
[391798310,1760841041227,-1000.0,0.0002414,2]
[391798311,1760841041236,-1000.0,0.0002414,2]
[391798312,1760841041245,-1000.0,0.0002414,2]
[391798313,1760841041254,-1104.6932053,0.0002414,2]
[391798314,1760841041267,-619.43,0.00024198,2]
[391798315,1760841041276,-150.0,0.00024762,2]
[391798316,1760841041286,-11093.12915998,0.000248,3]
[391798318,1760841046124,-250.0,0.0002013,2]
[391798319,1760841046135,-222.28644467,0.000248,3]
[391798320,1760841046285,-368.27600032,0.000248,3]
[391798330,1760841342626,264.18729133,0.00032836,120]
[391798349,1760841725040,151.0,0.00032902,30]
[391798350,1760841725199,6888.0,0.00032902,30]
[391798351,1760841725234,1000.0,0.00032902,30]
[391798352,1760841725268,300.0,0.00032902,30]
[391798353,1760841725313,1000.0,0.00032902,30]
[391798354,1760841725887,151.0,0.00032902,30]
[391798355,1760841725922,7142.856,0.00032902,30]
[391798356,1760841725956,300.0,0.00032902,30]
[391798357,1760841725989,1000.0,0.00032902,30]
[391798358,1760841726036,1000.0,0.00032902,30]
[391798359,1760841726461,151.0,0.00032902,30]
[391798360,1760841726520,7407.141672,0.00032902,30]
[391798361,1760841726571,1000.0,0.00032902,30]
[391798362,1760841726630,1000.0,0.00032902,30]
[391798363,1760841727048,151.0,0.00032902,30]
[391798364,1760841727084,7681.20591386,0.00032902,30]
[391798365,1760841727140,1000.0,0.00032902,30]
[391798366,1760841727186,1000.0,0.00032902,30]
[391798367,1760841727504,520.0,0.00032902,30]
[391798368,1760841727555,151.0,0.00032902,30]
[391798369,1760841727689,151.0,0.00032902,30]
[391798370,1760841727724,7965.41053268,0.00032902,30]
[391798371,1760841727781,1000.0,0.00032902,30]
[391798372,1760841727816,1000.0,0.00032902,30]
[391798373,1760841727851,1000.0,0.00032902,30]
[391798374,1760841727961,250.0,0.00032902,30]
[391798375,1760841728120,539.24,0.00032902,30]
[391798376,1760841728176,151.0,0.00032902,30]
[391798377,1760841728323,151.0,0.00032902,30]
[391798378,1760841728552,8260.13072239,0.00032902,30]
[391798379,1760841728589,1000.0,0.00032902,30]
[391798380,1760841728624,1000.0,0.00032902,30]
[391798381,1760841728658,1000.0,0.00032902,30]
[391798382,1760841728695,250.0,0.00032902,30]
[391798383,1760841728728,559.19188,0.00032902,30]
[391798384,1760841728862,151.0,0.00032902,30]
[391798385,1760841728979,8565.75555911,0.00032902,30]
[391798386,1760841729016,151.0,0.00032902,30]
[391798387,1760841729054,1000.0,0.00032902,30]
[391798388,1760841729092,1000.0,0.00032902,30]
[391798389,1760841729128,1000.0,0.00032902,30]
[391798390,1760841729189,250.0,0.00032902,30]
[391798391,1760841729252,250.0,0.00032902,30]
[391798392,1760841729380,579.88197956,0.00032902,30]
[391798393,1760841729487,151.0,0.00032902,30]
[391798394,1760841729613,151.0,0.00032902,30]
[391798395,1760841729647,8882.6885148,0.00032902,30]
[391798396,1760841729682,1000.0,0.00032902,30]
[391798397,1760841729720,1000.0,0.00032902,30]
[391798398,1760841729818,250.0,0.00032902,30]
[391798399,1760841729860,250.0,0.00032902,30]
[391798400,1760841730022,601.3376128,0.00032902,30]
[391798401,1760841730098,151.0,0.00032902,30]
[391798402,1760841730133,1000.0,0.00032902,30]
[391798403,1760841730236,9211.34798985,0.00032902,30]
[391798404,1760841730269,151.0,0.00032902,30]
[391798405,1760841730303,1000.0,0.00032902,30]
[391798406,1760841730337,1000.0,0.00032902,30]
[391798407,1760841730464,250.0,0.00032902,30]
[391798408,1760841730517,250.0,0.00032902,30]
[391798409,1760841730665,623.58710448,0.00032902,30]
[391798410,1760841730705,151.0,0.00032902,30]
[391798411,1760841730739,1000.0,0.00032902,30]
[391798412,1760841730843,9211.34798985,0.00032902,30]
[391798413,1760841731152,250.0,0.00032902,30]
[391798414,1760841731227,250.0,0.00032902,30]
[391798415,1760841731311,646.65982734,0.00032902,30]
[391798416,1760841731344,151.0,0.00032902,30]
[391798417,1760841731381,1000.0,0.00032902,30]
[391798418,1760841731730,151.0,0.00032902,30]
[391798419,1760841731777,250.0,0.00032902,30]
[391798420,1760841731943,151.0,0.00032902,30]
[391798421,1760841731978,670.58624095,0.00032902,30]
[391798422,1760841732013,1000.0,0.00032902,30]
[391798423,1760841732047,250.0,0.00032902,30]
[391798424,1760841732355,156.587,0.00032902,30]
[391798425,1760841732418,250.0,0.00032902,30]
[391798426,1760841732601,670.58624095,0.00032902,30]
[391798427,1760841732634,151.0,0.00032902,30]
[391798428,1760841732667,1000.0,0.00032902,30]
[391798429,1760841732701,250.0,0.00032902,30]
[391798430,1760841733001,156.587,0.00032902,30]
[391798431,1760841733047,250.0,0.00032902,30]
[391798432,1760841733284,1000.0,0.00032902,30]
[391798433,1760841733319,250.0,0.00032902,30]
[391798434,1760841733430,151.0,0.00032902,30]
[391798435,1760841733512,151.0,0.00032902,30]
[391798436,1760841733742,250.0,0.00032902,30]
[391798437,1760841734092,151.0,0.00032902,30]
[391798438,1760841734126,151.0,0.00032902,30]
[391798439,1760841734395,250.0,0.00032902,30]
[391798440,1760841734720,151.0,0.00032902,30]
[391798441,1760841734785,151.0,0.00032902,30]
[391798442,1760841735373,151.0,0.00032902,30]
[391798443,1760841735406,151.0,0.00032902,30]
[391798444,1760841735811,3000.0,0.00032902,30]
[391798445,1760841735846,500.0,0.00032902,30]
[391798446,1760841736026,151.0,0.00032902,30]
[391798447,1760841736063,151.0,0.00032902,30]
[391798448,1760841736399,160.0,0.00032902,30]
[391798449,1760841736448,3000.0,0.00032902,30]
[391798450,1760841736479,151.0,0.00032902,30]
[391798451,1760841736675,151.0,0.00032902,30]
[391798452,1760841736712,151.0,0.00032902,30]
[391798453,1760841736881,500.0,0.00032902,30]
[391798454,1760841737027,160.0,0.00032902,30]
[391798455,1760841737065,151.0,0.00032902,30]
[391798456,1760841737207,3000.0,0.00032902,30]
[391798457,1760841737242,151.0,0.00032902,30]
[391798458,1760841737276,151.0,0.00032902,30]
[391798459,1760841737497,500.0,0.00032902,30]
[391798460,1760841737568,220.0,0.00032902,30]
[391798461,1760841737600,500.0,0.00032902,30]
[391798462,1760841737632,160.0,0.00032902,30]
[391798463,1760841737663,151.0,0.00032902,30]
[391798464,1760841737805,3000.0,0.00032902,30]
[391798465,1760841737841,151.0,0.00032902,30]
[391798466,1760841738134,500.0,0.00032902,30]
[391798467,1760841738212,220.0,0.00032902,30]
[391798468,1760841738246,518.5,0.00032902,30]
[391798469,1760841738281,160.0,0.00032902,30]
[391798470,1760841738318,151.0,0.00032902,30]
[391798471,1760841738458,151.0,0.00032902,30]
[391798472,1760841738491,3000.0,0.00032902,30]
[391798473,1760841738527,151.0,0.00032902,30]
[391798474,1760841738741,500.0,0.00032902,30]
[391798475,1760841738814,220.0,0.00032902,30]
[391798476,1760841738847,537.6845,0.00032902,30]
[391798477,1760841738878,160.0,0.00032902,30]
[391798478,1760841738913,151.0,0.00032902,30]
[391798479,1760841739077,3000.0,0.00032902,30]
[391798480,1760841739113,156.587,0.00032902,30]
[391798481,1760841739351,500.0,0.00032902,30]
[391798482,1760841739473,160.0,0.00032902,30]
[391798483,1760841739508,557.5788265,0.00032902,30]
[391798484,1760841739542,151.0,0.00032902,30]
[391798485,1760841739715,3000.0,0.00032902,30]
[391798486,1760841739752,162.380719,0.00032902,30]
[391798487,1760841740019,500.0,0.00032902,30]
[391798488,1760841740101,578.20924308,0.00032902,30]
[391798489,1760841740138,160.0,0.00032902,30]
[391798490,1760841740173,151.0,0.00032902,30]
[391798491,1760841740358,3000.0,0.00032902,30]
[391798492,1760841740393,168.3888056,0.00032902,30]
[391798493,1760841740631,500.0,0.00032902,30]
[391798494,1760841740727,599.60298507,0.00032902,30]
[391798495,1760841740761,160.0,0.00032902,30]
[391798496,1760841740794,151.0,0.00032902,30]
[391798497,1760841741011,3000.0,0.00032902,30]
[391798498,1760841741044,174.61919141,0.00032902,30]
[391798499,1760841741289,500.0,0.00032902,30]
[391798500,1760841741343,621.78829552,0.00032902,30]
[391798501,1760841741385,151.0,0.00032902,30]
[391798502,1760841741435,160.0,0.00032902,30]
[391798503,1760841741642,181.08010149,0.00032902,30]
[391798504,1760841741971,644.79446246,0.00032902,30]
[391798505,1760841742303,187.78006525,0.00032902,30]
[391798506,1760841742626,668.65185757,0.00032902,30]
[391798507,1760841742928,194.72792766,0.00032902,30]
[391798508,1760841743257,668.65185757,0.00032902,30]
[391798509,1760841743545,194.72792766,0.00032902,30]
[391798510,1760841744570,250.0,0.00032902,30]
[391798511,1760841744805,151.0,0.00032902,30]
[391798512,1760841745205,250.0,0.00032902,30]
[391798513,1760841745463,151.0,0.00032902,30]
[391798514,1760841745812,250.0,0.00032902,30]
[391798515,1760841746198,151.0,0.00032902,30]
[391798516,1760841746446,250.0,0.00032902,30]
[391798518,1760841747095,250.0,0.00032902,30]
[391798521,1760841747704,250.0,0.00032902,30]
[391798522,1760841748445,250.0,0.00032902,30]
[391798523,1760841749531,250.0,0.00032902,30]
[391798524,1760841750184,250.0,0.00032902,30]
[391798531,1760841919713,224.38,0.00026385,120]
[391798552,1760842232256,-517.49716315,0.00014999,2]
[391798553,1760842232267,-437.78305487,0.00015749,2]
[391798554,1760842232277,-300.0,0.00016499,2]
[391798555,1760842232287,-250.0,0.00016499,2]
[391798556,1760842232296,-300.0,0.00016499,2]
[391798557,1760842232306,-278.35,0.00020645,2]
[391798558,1760842232316,-189.78,0.00021858,2]
[391798559,1760842232326,-4131.34717386,0.00022,2]
[391798560,1760842232335,-201.302082,0.00023177,2]
[391798561,1760842232344,-300.0,0.00023912,2]
[391798562,1760842232354,-1200.0,0.00023912,2]
[391798563,1760842232364,-300.0,0.00023912,2]
[391798564,1760842232374,-4635.7359075,0.00023913,2]
[391798565,1760842232386,-6146.9783672,0.00023913,2]
[391798566,1760842232397,-3579.4237707,0.00023913,2]
[391798567,1760842232407,-359.15,0.00024784,2]
[391798568,1760842232417,-475.82771539,0.000248,3]
[391798569,1760842232426,-1217.03,0.00024862,2]
[391798570,1760842232435,-500.0,0.00024932,2]
[391798571,1760842232445,-619.43,0.00025005,2]
[391798572,1760842232454,-359.15,0.00025058,2]
[391798573,1760842232464,-359.15,0.00025332,2]
[391798574,1760842232473,-359.15,0.00025606,2]
[391798575,1760842232484,-150.0,0.00025739,2]
[391798576,1760842232492,-500.0,0.0002574,2]
[391798577,1760842232501,-619.43,0.00025811,2]
[391798578,1760842232510,-359.17814362,0.0002588,2]
[391798579,1760842232519,-2205.1217,0.00025918,10]
[391798580,1760842232528,-151.0,0.00025929,2]
[391798581,1760842232537,-151.0,0.00025929,2]
[391798582,1760842232545,-151.0,0.00025929,2]
[391798583,1760842232554,-151.0,0.00025929,2]
[391798584,1760842232564,-151.0,0.00025929,2]
[391798585,1760842232574,-151.0,0.00025929,2]
[391798587,1760842232583,-151.0,0.00025929,2]
[391798588,1760842232592,-151.0,0.00025929,2]
[391798590,1760842232602,-151.0,0.00025929,2]
[391798592,1760842232611,-151.0,0.00025929,2]
[391798594,1760842232620,-151.0,0.00025929,2]
[391798596,1760842232632,-151.0,0.00025929,2]
[391798598,1760842232641,-151.0,0.00025929,2]
[391798600,1760842232650,-151.0,0.00025929,2]
[391798602,1760842232660,-151.0,0.00025929,2]
[391798604,1760842232670,-151.0,0.00025929,2]
[391798606,1760842232679,-151.0,0.00025929,2]
[391798608,1760842232688,-151.0,0.00025929,2]
[391798610,1760842232698,-239.83189209,0.00025929,2]
[391798611,1760842232708,-305.0,0.00025934,2]
[391798613,1760842232717,-500.83838662,0.00025973,2]
[391798615,1760842232727,-619.36424473,0.00025973,2]
[391798617,1760842232736,-500.0,0.00025973,2]
[391798619,1760842232745,-500.0,0.00025973,2]
[391798621,1760842232756,-195.58303114,0.00026,2]
[391798622,1760842232765,-475.82771539,0.00026003,2]
[391798623,1760842232774,-544.0,0.00026052,2]
[391798624,1760842232783,-500.0,0.00026262,2]
[391798625,1760842232794,-500.0,0.00026262,2]
[391798626,1760842232803,-500.0,0.00026262,2]
[391798627,1760842232814,-500.0,0.00026262,2]
[391798628,1760842232824,-378.07444111,0.00026262,2]
[391798629,1760842232833,-500.72066446,0.00026262,2]
[391798630,1760842232843,-500.0,0.00026262,2]
[391798631,1760842232852,-500.0,0.00026288,2]
[391798632,1760842232862,-195.58303114,0.000263,2]
[391798633,1760842232872,-481.07,0.00026376,2]
[391798634,1760842232882,-180.25,0.00026385,7]
[391798635,1760842232892,-267.46074303,0.00026486,2]
[391798636,1760842232901,-500.0,0.00026521,2]
[391798637,1760842232913,-500.0,0.00026521,2]
[391798638,1760842232923,-166.66,0.00026525,30]
[391798639,1760842232933,-3076.26,0.00026596,2]
[391798640,1760842232942,-619.43,0.00026618,2]
[391798641,1760842232951,-666.0,0.00026645,3]
[391798642,1760842232960,-1194.21,0.00026661,2]
[391798643,1760842232970,-176.46,0.00026662,2]
[391798644,1760842232980,-1000.0,0.000267,2]
[391798645,1760842232990,-1494.37,0.00026729,2]
[391798646,1760842232999,-500.0,0.00026809,2]
[391798647,1760842233009,-500.0,0.00026809,2]
[391798648,1760842233018,-3579.4237707,0.0002681,2]
[391798649,1760842233028,-414.73,0.00026828,2]
[391798650,1760842233037,-6146.9783672,0.0002687,2]
[391798651,1760842233047,-5000.0,0.00026876,2]
[391798652,1760842233056,-250.0,0.00026879,7]
[391798653,1760842233066,-4635.7359075,0.00026895,2]
[391798654,1760842233075,-177.381,0.00026979,15]
[391798655,1760842233084,-1829.451,0.00026979,15]
[391798656,1760842233094,-157.05566481,0.00027,2]
[391798657,1760842233103,-150.0,0.00027,2]
[391798658,1760842233113,-160.5327588,0.00027,2]
[391798659,1760842233123,-153.15942376,0.00027,2]
[391798660,1760842233132,-6942.28,0.00027033,2]
[391798661,1760842233142,-166.66,0.00027084,30]
[391798662,1760842233152,-1000.0,0.000271,2]
[391798663,1760842233161,-500.0,0.00027109,2]
[391798664,1760842233170,-1000.0,0.000272,2]
[391798665,1760842233180,-1000.0,0.00027391,2]
[391798666,1760842233189,-1938.03,0.00027397,2]
[391798667,1760842233198,-10133.63,0.00027397,2]
[391798668,1760842233208,-152.0,0.00027401,3]
[391798669,1760842233218,-619.43,0.00027425,2]
[391798670,1760842233228,-180.25,0.00027515,7]
[391798671,1760842233238,-166.66,0.00027642,30]
[391798672,1760842233247,-153.0,0.00027668,2]
[391798673,1760842233256,-2751.0,0.00027823,2]
[391798674,1760842233265,-277.35679052,0.00027855,2]
[391798675,1760842233275,-166.66,0.000282,30]
[391798676,1760842233284,-229.73187603,0.00028203,2]
[391798677,1760842233293,-619.43,0.00028231,2]
[391798678,1760842233306,-185.19587065,0.00028253,4]
[391798679,1760842233315,-250.0,0.00028305,2]
[391798680,1760842233325,-17382.0,0.00028464,2]
[391798681,1760842233335,-258.0,0.00028745,2]
[391798682,1760842233345,-2547.0,0.00028745,2]
[391798683,1760842233355,-166.66,0.00028759,30]
[391798684,1760842233364,-180.25,0.00028767,30]
[391798685,1760842233373,-619.43,0.00029038,2]
[391798686,1760842233383,-152.0,0.00029088,4]
[391798687,1760842233393,-150.0,0.00029091,2]
[391798688,1760842233403,-500.77926386,0.00029136,5]
[391798689,1760842233412,-500.0,0.00029136,3]
[391798690,1760842233607,-166.66,0.00029317,30]
[391798691,1760842233620,-300.0,0.000297,10]
[391798692,1760842233632,-3579.4237707,0.00029707,2]
[391798693,1760842233642,-168.0,0.00029764,2]
[391798694,1760842233652,-180.25,0.00029775,30]
[391798695,1760842233663,-1000.0,0.000298,2]
[391798696,1760842233672,-700.0,0.000298,10]
[391798697,1760842233684,-554.9,0.00029805,2]
[391798698,1760842233695,-372.85244499,0.00029814,2]
[391798699,1760842233705,-999.99,0.00029815,2]
[391798700,1760842233716,-150.99,0.00029815,2]
[391798701,1760842233726,-7183.5,0.00029815,2]
[391798702,1760842233735,-9106.4,0.00029815,2]
[391798703,1760842233744,-150.99,0.00029815,2]
[391798704,1760842233754,-13463.08,0.00029815,2]
[391798705,1760842233764,-35253.62,0.00029815,10]
[391798706,1760842233774,-9999.99,0.00029815,2]
[391798707,1760842233784,-8273.96,0.00029815,2]
[391798708,1760842233795,-9999.99,0.00029815,2]
[391798709,1760842233803,-506.64,0.00029815,2]
[391798710,1760842233813,-9999.99,0.00029815,2]
[391798711,1760842233822,-6146.9783672,0.00029827,2]
[391798712,1760842233831,-619.43,0.00029844,2]
[391798713,1760842233840,-161.91720859,0.00029845,2]
[391798714,1760842233850,-306.69689598,0.0002986,2]
[391798715,1760842233860,-500.0,0.0002986,2]
[391798716,1760842233869,-269.53938603,0.0002986,2]
[391798717,1760842233879,-500.0,0.0002986,2]
[391798718,1760842233888,-191.23771941,0.0002986,2]
[391798719,1760842233897,-151.05926022,0.0002986,2]
[391798720,1760842233907,-2515.32731704,0.00029861,2]
[391798721,1760842233916,-554.9,0.00029868,2]
[391798722,1760842233926,-4635.7359075,0.00029878,2]
[391798723,1760842233936,-554.9,0.0002988,2]
[391798724,1760842233947,-168.0,0.00029889,2]
[391798725,1760842233957,-22939.87063076,0.0002989,2]
[391798726,1760842233967,-50161.64269498,0.0002989,2]
[391798727,1760842233982,-747.00454734,0.0002989,2]
[391798728,1760842233992,-1000.0,0.000299,10]
[391798729,1760842234002,-1121.23542021,0.000299,2]
[391798730,1760842234012,-554.9,0.0002997,2]
[391798731,1760842234023,-554.9,0.0002997,2]
[391798732,1760842234035,-500.3536037,0.00029973,5]
[391798733,1760842234044,-500.0,0.0002998,8]
[391798734,1760842234053,-98989.215708,0.0002998,3]
[391798735,1760842234064,-745.6569597,0.0002998,3]
[391798736,1760842234076,-1610.64836521,0.0002998,3]
[391798737,1760842234089,-741.47776478,0.0002998,3]
[391798738,1760842234103,-780.94247861,0.0002998,3]
[391798739,1760842234115,-473.32,0.0002998,3]
[391798740,1760842234136,-2123.79151702,0.0002998,3]
[391798741,1760842234149,-7527.06724576,0.0002998,3]
[391798742,1760842234160,-60413.82646792,0.0002998,3]
[391798743,1760842234171,-137279.707652,0.0002999,3]
[391798744,1760842234180,-151.0,0.0002999,30]
[391798745,1760842234190,-170.18971298,0.0002999,2]
[391798746,1760842234199,-151.07,0.0002999,2]
[391798747,1760842234210,-999.0,0.00029999,120]
[391798748,1760842234220,-2647.0,0.0003,5]
[391798749,1760842234230,-494.88423836,0.0003,120]
[391798750,1760842234240,-184.44620677,0.0003,120]
[391798751,1760842234250,-541808.25960543,0.0003,2]
[391798752,1760842234262,-257.61134893,0.0003,2]
[391798761,1760842238069,-500.0,0.0002652,2]
[391798762,1760842238080,-500.0,0.0002652,2]
[391798763,1760842238089,-500.0,0.0002652,2]
[391798764,1760842238099,-500.0,0.0002652,2]
[391798765,1760842238109,-500.0,0.0002652,2]
[391798766,1760842238120,-500.0,0.0002652,2]
[391798767,1760842238136,-500.0,0.0002652,2]
[391798768,1760842238145,-500.0,0.0002652,2]
[391798769,1760842238155,-500.0,0.0002652,2]
[391798770,1760842238165,-500.0,0.0002652,2]
[391798771,1760842238174,-500.0,0.0002652,2]
[391798772,1760842238184,-500.0,0.0002652,2]
[391798773,1760842238194,-500.0,0.0002652,2]
[391798774,1760842238203,-500.0,0.0002652,2]
[391798775,1760842238212,-500.0,0.0002652,2]
[391798776,1760842238222,-500.0,0.0002652,2]
[391798777,1760842238232,-625.93847891,0.0002652,2]
[391798778,1760842238242,-500.0,0.0002652,2]
[391798779,1760842238251,-500.0,0.0002652,2]
[391798780,1760842238266,-500.0,0.0002652,2]
[391798781,1760842238276,-500.0,0.0002652,2]
[391798782,1760842238286,-500.0,0.0002652,2]
[391798783,1760842238295,-500.0,0.0002652,2]
[391798784,1760842238305,-500.0,0.0002652,2]
[391798785,1760842238314,-500.0,0.0002652,2]
[391798786,1760842238324,-500.0,0.0002652,2]
[391798788,1760842238334,-500.0,0.0002652,2]
[391798789,1760842238343,-500.0,0.0002652,2]
[391798791,1760842238352,-4775.19057447,0.0003,2]
[391798794,1760842238368,-1144.0,0.0003,2]
[391798798,1760842240463,-1053.60857927,0.0003,2]
[391798799,1760842240516,-509866.54166913,0.0003,2]
[391798800,1760842240526,-296.46879,0.0003,30]
[391798801,1760842240535,-168.0,0.0003006,2]
[391798802,1760842240544,-500.0,0.00030136,8]
[391798803,1760842240554,-500.0,0.00030136,8]
[391798804,1760842240563,-500.0,0.00030136,8]
[391798805,1760842240572,-500.0,0.00030136,8]
[391798806,1760842240582,-500.0,0.00030136,8]
[391798807,1760842240591,-500.0,0.00030136,8]
[391798808,1760842240601,-500.0,0.00030136,8]
[391798809,1760842240610,-500.0,0.00030136,8]
[391798810,1760842240619,-500.0,0.00030136,8]
[391798811,1760842240629,-500.0,0.00030136,8]
[391798812,1760842240641,-500.0,0.00030136,8]
[391798813,1760842240651,-500.0,0.00030136,8]